fUST/lending_fUST_20240711
["ID","MTS","AMOUNT","RATE_DAILY","PERIOD"]
[331690924,1720647038660,-274.979631,0.00027195,2]
[331690925,1720647038670,-500.0,0.00027397,2]
[331690926,1720647038680,-194.04779558,0.00027397,2]
[331690927,1720647038690,-437.19990465,0.00027397,2]
[331690928,1720647038700,-500.0,0.00027397,2]
[331690929,1720647038710,-175.41119278,0.000274,2]
[331690930,1720647038721,-526.22705313,0.00028,2]
[331690931,1720647038730,-416.59079732,0.000289,2]
[331690932,1720647038741,-453.22022894,0.00029,2]
[331690933,1720647038751,-155.43553926,0.00029979,2]
[331690934,1720647038761,-155.43553926,0.00029979,2]
[331690935,1720647038772,-77191.7835836,0.0002999,4]
[331690936,1720647038782,-643.66349447,0.0003,4]
[331690937,1720647038792,-499.97460298,0.0003,4]
[331690938,1720647038802,-471.68236775,0.0003,4]
[331690939,1720647038813,-284.6000077,0.0003,3]
[331690940,1720647038823,-232.67902139,0.0003,4]
[331690941,1720647038834,-5611.49557264,0.0003,4]
[331690942,1720647038844,-277.4321417,0.0003,4]
[331690943,1720647038855,-615.95726577,0.00030341,4]
[331690944,1720647038865,-468.05129613,0.00030341,4]
[331690945,1720647038875,-2000.0,0.00030341,4]
[331690946,1720647038886,-2500.0,0.00031,2]
[331690947,1720647038897,-151.0,0.00031519,4]
[331690948,1720647038908,-151.0,0.00031983,4]
[331690949,1720647038920,-151.0,0.00032446,4]
[331690950,1720647038931,-5292.88975486,0.00032633,2]
[331690951,1720647038942,-366.6405652,0.00032771,2]
[331690952,1720647038952,-70958.16142361,0.00032866,4]
[331690953,1720647038966,-2589.80000015,0.00032866,4]
[331690954,1720647038980,-341.9273687,0.00032866,4]
[331690979,1720647040408,-1470.30002229,0.00032866,4]
[331690980,1720647040424,-79023.37835225,0.00032866,4]
[331690981,1720647040434,-175.76547638,0.00032875,2]
[331690982,1720647040443,-174.63681001,0.00032875,2]
[331690983,1720647040453,-225.86794594,0.00032875,2]
[331690984,1720647040462,-500.0,0.00032875,2]
[331690985,1720647040473,-367.87194548,0.00032875,2]
[331690986,1720647040483,-363.25370633,0.00032875,2]
[331690987,1720647040493,-500.0,0.00032875,2]
[331690988,1720647040502,-500.0,0.00032875,2]
[331690989,1720647040512,-500.0,0.00032875,2]
[331690990,1720647040521,-500.0,0.00032875,2]
[331690991,1720647040531,-449.26021064,0.00032875,2]
[331690992,1720647040540,-500.0,0.00032875,2]
[331690993,1720647040549,-500.0,0.00032875,2]
[331690994,1720647040559,-500.0,0.00032875,2]
[331690995,1720647040569,-500.0,0.00032875,2]
[331690996,1720647040578,-350.0,0.00032875,2]
[331690997,1720647040587,-500.0,0.00032875,2]
[331690998,1720647040597,-624.6173988,0.00032876,7]
[331690999,1720647040606,-500.0,0.00032876,7]
[331691000,1720647040616,-500.0,0.00032876,7]
[331691001,1720647040626,-500.0,0.00032876,7]
[331691002,1720647040635,-500.0,0.00032876,7]
[331691003,1720647040645,-500.0,0.00032876,7]
[331691004,1720647040657,-527.64794882,0.00032876,7]
[331691005,1720647040667,-349.19433368,0.00032876,7]
[331691006,1720647040676,-1017.18,0.00032876,7]
[331691007,1720647040686,-534.34713418,0.00032876,7]
[331691008,1720647040840,-500.0,0.00032876,7]
[331691009,1720647040850,-545.1273048,0.00032876,7]
[331691010,1720647040860,-500.0,0.00032876,7]
[331691011,1720647040870,-500.0,0.00032876,7]
[331691012,1720647040880,-500.0,0.00032876,7]
[331691013,1720647040889,-500.0,0.00032876,7]
[331691014,1720647040899,-500.0,0.00032876,7]
[331691015,1720647040910,-500.0,0.00032876,7]
[331691016,1720647040919,-500.0,0.00032876,7]
[331691017,1720647040929,-514.81455566,0.00032876,7]
[331691018,1720647040939,-773.52,0.00032876,7]
[331691019,1720647040948,-531.62223007,0.00032876,7]
[331691020,1720647040958,-500.0,0.00032876,7]
[331691021,1720647040968,-835.63,0.00032876,7]
[331691022,1720647040977,-931.05,0.00032876,7]
[331691023,1720647040987,-500.0,0.00032876,7]
[331691024,1720647040997,-1500.0,0.00032876,7]
[331691025,1720647041006,-1400.97,0.00032876,7]
[331691026,1720647041016,-500.0,0.00032876,7]
[331691027,1720647041026,-500.0,0.00032876,7]
[331691028,1720647041036,-500.0,0.00032876,7]
[331691029,1720647041046,-719.63,0.00032876,7]
[331691030,1720647041055,-702.7,0.00032876,7]
[331691031,1720647041064,-502.39172908,0.00032876,7]
[331691032,1720647041074,-559.46,0.00032876,7]
[331691033,1720647041084,-475.14948919,0.00032876,7]
[331691034,1720647041093,-500.0,0.00032876,5]
[331691035,1720647041104,-500.0,0.00032876,5]
[331691036,1720647041114,-500.0,0.00032876,5]
[331691037,1720647041123,-500.0,0.00032876,7]
[331691038,1720647041133,-500.0,0.00032876,7]
[331691039,1720647041142,-500.0,0.00032876,7]
[331691040,1720647041152,-500.0,0.00032876,7]
[331691041,1720647041162,-500.0,0.00032876,7]
[331691042,1720647041171,-500.0,0.00032876,7]
[331691043,1720647041181,-500.0,0.00032876,7]
[331691044,1720647041190,-500.0,0.00032876,7]
[331691045,1720647041200,-500.0,0.00032876,7]
[331691046,1720647041209,-500.0,0.00032876,7]
[331691047,1720647041219,-408.75626168,0.00032876,7]
[331691048,1720647041228,-500.0,0.00032876,7]
[331691049,1720647041238,-500.0,0.00032876,7]
[331691050,1720647041248,-500.0,0.00032876,7]
[331691051,1720647041258,-541.11277977,0.00032876,7]
[331691052,1720647041268,-500.0,0.00032876,7]
[331691053,1720647041277,-500.0,0.00032876,7]
[331691054,1720647041287,-500.0,0.00032876,7]
[331691055,1720647041296,-66.62924453,0.00032876,7]
[331691336,1720648144759,-916.43849797,0.00018197,2]
[331691337,1720648144798,-916.43849797,0.00018197,2]
[331691338,1720648144849,-473.53434838,0.00018197,2]
[331691339,1720648151158,-693.58865568,0.00018197,2]
[331691340,1720648151178,-6383.6650664,0.00018342,2]
[331691341,1720648151199,-185.80680896,0.000191,2]
[331691342,1720648151220,-300.0,0.00019809,2]
[331691343,1720648151242,-300.0,0.0001981,2]
[331691344,1720648151263,-265.467276,0.00019811,2]
[331691345,1720648151284,-8046.47152351,0.0002,2]
[331691346,1720648151305,-250.0,0.00020055,2]
[331691347,1720648151326,-167.486278,0.00021096,2]
[331691348,1720648151347,-300.0,0.00021574,2]
[331691349,1720648151367,-420.0,0.00021791,2]
[331691350,1720648151388,-2281.8649205,0.00021818,2]
[331691351,1720648151409,-166.666666,0.00022023,2]
[331691352,1720648151431,-24900.0,0.00022404,2]
[331691353,1720648151452,-919.12418032,0.00022523,2]
[331691354,1720648151473,-166.666666,0.00022623,2]
[331691355,1720648151492,-161.769972,0.00022868,2]
[331691356,1720648151512,-3287.83983401,0.00022941,2]
[331691357,1720648153139,-687.07395224,0.00022941,2]
[331691358,1720648153160,-166.666666,0.00023224,2]
[331691359,1720648153182,-166.666666,0.00023824,2]
[331691360,1720648153203,-587.0,0.0002397,2]
[331691361,1720648154593,195.54651255,0.00023966,2]
[331691363,1720648156119,-180.545394,0.00022942,2]
[331691423,1720648233846,-288.86359911,0.00020768,2]
[331691425,1720648233856,-314.040659,0.00021096,2]
[331691427,1720648233865,-113.5365452,0.00021917,2]
[331691431,1720648233894,-952.27796506,0.00021917,2]
[331691433,1720648233903,-466.6642633,0.00022942,2]
[331691435,1720648233913,-930.39522413,0.00022942,2]
[331691437,1720648233925,-1069.60477587,0.00022942,2]
[331691439,1720648233934,-1987.94718132,0.00023453,2]
[331691441,1720648233944,-166.666666,0.00024424,2]
[331691443,1720648233953,-885.90879381,0.00024481,2]
[331691445,1720648233962,-380.0,0.00024658,2]
[331691447,1720648233971,-348.92842168,0.00024942,2]
[331691449,1720648233980,-166.666666,0.00025025,2]
[331691451,1720648233990,-300.0,0.000255,2]
[331691453,1720648233999,-2441.79527029,0.00025501,2]
[331691497,1720648238673,-1094.24687881,0.00025401,2]
[331691498,1720648238683,-59.36493335,0.00025501,2]
[331691499,1720648238696,-2638.12105731,0.00025501,2]
[331691500,1720648238776,-537.88931049,0.00025501,2]
[331691501,1720648238789,-24322.82942856,0.00025501,2]
[331691502,1720648238798,-229.22032487,0.00025501,2]
[331691503,1720648238808,-458.44819353,0.00025501,2]
[331691504,1720648238817,-458.44819353,0.00025501,2]
[331691505,1720648238826,-628.97255817,0.00025654,2]
[331691506,1720648238836,-288.86359911,0.00025768,2]
[331691507,1720648238847,-18028.94044865,0.00025869,2]
[331691508,1720648238857,-191.16817144,0.00025902,2]
[331691509,1720648238867,-191.16817144,0.00025902,2]
[331691510,1720648238876,-276.69913264,0.00025902,2]
[331691511,1720648238886,-8054.41536007,0.00026429,2]
[331691512,1720648238897,-191.04644475,0.00026473,2]
[331691513,1720648238908,-348.36389326,0.00026574,2]
[331691514,1720648238918,-247.89,0.00026839,3]
[331691515,1720648238928,-266.27,0.00026839,3]
[331691516,1720648238937,-195.91834676,0.00026848,2]
[331691517,1720648238947,-798.82,0.00027165,3]
[331691518,1720648238956,-7797.36,0.00027165,3]
[331691519,1720648238966,-74194.7304073,0.00027175,3]
[331691520,1720648238975,-154.59033561,0.00027194,2]
[331691521,1720648238984,-314.040659,0.00027195,2]
[331691522,1720648238993,-158.5271543,0.00027397,120]
[331691523,1720648239003,-620.02322565,0.00027616,2]
[331691524,1720648239012,-10526.5219894,0.00027869,2]
[331691525,1720648239021,-4776.24202777,0.00027958,5]
[331691526,1720648239030,-500.0,0.00027958,2]
[331691527,1720648239040,-192.39470163,0.00027958,2]
[331691528,1720648239050,-500.0,0.00027958,2]
[331691529,1720648239060,-500.0,0.00027958,2]
[331691530,1720648239069,-500.0,0.00027958,2]
[331691531,1720648239079,-500.0,0.00027958,2]
[331691532,1720648239088,-648.28568589,0.00027958,2]
[331691533,1720648239098,-500.0,0.00027958,2]
[331691534,1720648239108,-500.0,0.00027958,2]
[331691535,1720648239118,-500.0,0.00027958,2]
[331691536,1720648239128,-500.0,0.00027958,2]
[331691537,1720648239138,-500.0,0.00027958,2]
[331691538,1720648239147,-500.0,0.00027958,2]
[331691539,1720648239157,-500.0,0.00027958,2]
[331691540,1720648239166,-500.0,0.00027958,2]
[331691541,1720648239176,-500.0,0.00027958,2]
[331691542,1720648239186,-500.0,0.00027958,2]
[331691543,1720648239196,-500.0,0.00027958,2]
[331691544,1720648239206,-500.0,0.00027958,2]
[331691545,1720648239215,-282.06803579,0.00027958,2]
[331691546,1720648239225,-500.0,0.00027958,2]
[331691547,1720648239235,-500.0,0.00027958,2]
[331691548,1720648239245,-505.66003821,0.00027958,2]
[331691549,1720648239255,-500.0,0.00027958,2]
[331691550,1720648239265,-500.0,0.00027958,2]
[331691551,1720648239274,-554.55783312,0.00027958,2]
[331691552,1720648239284,-500.0,0.00027958,2]
[331691553,1720648239294,-500.0,0.00027958,2]
[331691554,1720648239303,-500.0,0.00027958,2]
[331691555,1720648239312,-500.0,0.00027958,2]
[331691556,1720648239322,-500.0,0.00027958,2]
[331691557,1720648239331,-500.0,0.00027958,2]
[331691558,1720648239341,-269.87733092,0.00027958,2]
[331691559,1720648239351,-500.0,0.00027958,2]
[331691560,1720648239360,-500.0,0.00027958,2]
[331691561,1720648239370,-500.0,0.00027958,2]
[331691562,1720648239380,-500.0,0.00027958,2]
[331691563,1720648239502,-500.0,0.00027958,2]
[331691564,1720648239512,-500.0,0.00027958,2]
[331691565,1720648239521,-500.0,0.00027958,2]
[331691566,1720648239531,-500.0,0.00027958,2]
[331691567,1720648239540,-500.0,0.00027958,2]
[331691568,1720648239549,-500.0,0.00027958,2]
[331691569,1720648239558,-500.0,0.00027958,2]
[331691570,1720648239568,-500.0,0.00027958,2]
[331691571,1720648239578,-500.0,0.00027958,2]
[331691572,1720648239588,-500.0,0.00027958,2]
[331691573,1720648239598,-500.0,0.00027958,2]
[331691574,1720648239608,-500.0,0.00027958,2]
[331691575,1720648239618,-500.0,0.00027958,2]
[331691576,1720648239628,-500.0,0.00027958,2]
[331691577,1720648239638,-500.0,0.00027958,2]
[331691578,1720648239648,-500.0,0.00027958,2]
[331691579,1720648239657,-500.0,0.00027958,2]
[331691580,1720648239667,-500.0,0.00027958,2]
[331691581,1720648239677,-500.0,0.00027958,2]
[331691582,1720648239687,-500.0,0.00027958,2]
[331691583,1720648239696,-500.0,0.00027958,2]
[331691584,1720648239706,-500.0,0.00027958,2]
[331691585,1720648239715,-500.0,0.00027958,2]
[331691586,1720648239724,-500.0,0.00027958,2]
[331691587,1720648239734,-283.83975923,0.00027958,2]
[331691588,1720648239744,-500.0,0.00027958,2]
[331691589,1720648239754,-500.0,0.00027958,2]
[331691590,1720648239763,-500.0,0.00027958,2]
[331691591,1720648239772,-500.0,0.00027958,2]
[331691592,1720648239782,-500.0,0.00027958,2]
[331691593,1720648239792,-500.0,0.00027958,2]
[331691594,1720648239801,-500.0,0.00027958,2]
[331691595,1720648239811,-500.0,0.00027958,2]
[331691596,1720648239821,-521.78714422,0.00027958,2]
[331691597,1720648239831,-488.58443603,0.00027958,2]
[331691598,1720648239842,-500.0,0.00027958,2]
[331691599,1720648239853,-500.0,0.00027958,2]
[331691600,1720648239863,-500.0,0.00027958,2]
[331691601,1720648239873,-500.0,0.00027958,2]
[331691602,1720648239882,-500.0,0.00027958,2]
[331691603,1720648239892,-500.0,0.00027958,2]
[331691604,1720648239903,-500.0,0.00027958,2]
[331691605,1720648239912,-500.0,0.00027958,2]
[331691606,1720648239922,-500.0,0.00027958,2]
[331691607,1720648239932,-500.0,0.00027958,2]
[331691608,1720648239942,-500.0,0.00027958,2]
[331691609,1720648239951,-500.0,0.00027958,2]
[331691610,1720648239961,-500.0,0.00027958,2]
[331691611,1720648239971,-300.0,0.00027958,2]
[331691612,1720648239980,-500.0,0.00027958,2]
[331691613,1720648239990,-500.0,0.00027958,2]
[331691614,1720648239999,-500.0,0.00027958,2]
[331691615,1720648240008,-182.11748928,0.00027958,2]
[331691616,1720648240018,-500.0,0.00027958,2]
[331691617,1720648240028,-500.0,0.00027958,2]
[331691618,1720648240037,-500.0,0.00027958,2]
[331691619,1720648240047,-500.0,0.00027958,2]
[331691620,1720648240056,-500.0,0.00027958,2]
[331691621,1720648240066,-500.0,0.00027958,2]
[331691622,1720648240075,-500.0,0.00027958,2]
[331691623,1720648240084,-500.0,0.00027958,2]
[331691624,1720648240094,-74194.7304073,0.00027959,3]
[331691625,1720648240104,-74194.7304073,0.00027989,3]
[331691626,1720648240113,-26956.75716544,0.0002799,2]
[331691627,1720648240123,-1230.11455497,0.00027999,2]
[331691628,1720648240133,-229.31696231,0.00028,30]
[331691629,1720648240142,-3416.02008582,0.00028126,2]
[331691630,1720648240157,-7110.50190357,0.00028126,2]
[331691631,1720648240167,-532.54,0.00028209,3]
[331691632,1720648240177,-10526.52198939,0.00028383,2]
[331691633,1720648240187,-798.78016452,0.000285,2]
[331691634,1720648240197,-10526.52198939,0.0002864,2]
[331691635,1720648240207,-150.5,0.0002873,62]
[331691636,1720648240217,-150.5,0.0002874,62]
[331691637,1720648240227,-150.5,0.0002875,62]
[331691638,1720648240237,-74194.7304073,0.0002876,3]
[331691639,1720648240246,-74194.7304073,0.0002876,3]
[331691640,1720648240256,-364.48214745,0.00028769,2]
[331691641,1720648240265,-158.10756215,0.00028769,2]
[331691642,1720648240275,-607.51036184,0.00028769,2]
[331691643,1720648240285,-500.0,0.00028769,2]
[331691644,1720648240294,-500.0,0.00028769,2]
[331691645,1720648240303,-500.0,0.00028769,2]
[331691646,1720648240313,-500.0,0.00028769,2]
[331691647,1720648240322,-249.27759443,0.00028769,2]
[331691648,1720648240331,-500.0,0.00028769,2]
[331691649,1720648240340,-500.0,0.00028769,2]
[331691650,1720648240349,-500.0,0.00028769,2]
[331691651,1720648240359,-500.0,0.00028769,2]
[331691652,1720648240369,-16510.73294105,0.0002877,5]
[331691653,1720648240378,-101453.5290233,0.0002877,2]
[331691654,1720648240387,-373.263308,0.0002877,7]
[331691655,1720648240397,-151.0,0.0002877,7]
[331691656,1720648240407,-319.185245,0.0002877,7]
[331691657,1720648240416,-693.707601,0.0002877,7]
[331691658,1720648240426,-164.750298,0.0002877,7]
[331691659,1720648240435,-373.263308,0.0002877,7]
[331691660,1720648240444,-693.707601,0.0002877,7]
[331691661,1720648240453,-319.185245,0.0002877,7]
[331691662,1720648240463,-151.0,0.0002877,7]
[331691664,1720648240472,-10526.52198939,0.00028897,2]
[331691665,1720648240481,-620.00116128,0.00028997,2]
[331691666,1720648240490,-453.22022894,0.00029,2]
[331691667,1720648240500,-151.0,0.00029112,7]
[331691668,1720648240509,-151.0,0.00029112,7]
[331691669,1720648240518,-151.0,0.00029112,7]
[331691670,1720648240527,-265.467276,0.00029716,2]
[331691671,1720648240536,-250.01701252,0.00029772,2]
[331691672,1720648240545,-151.0,0.00029793,7]
[331691673,1720648240554,-305.171476,0.00029793,7]
[331691674,1720648240563,-217.660025,0.00029793,7]
[331691675,1720648240572,-305.171476,0.00029793,7]
[331691677,1720648240582,-155.43553926,0.00029813,2]
[331691679,1720648240591,-159.72145129,0.00029861,2]
[331691681,1720648240600,-159.72145129,0.0002987,2]
[331691682,1720648240609,-308.51871438,0.0002987,2]
[331691684,1720648240618,-412.88555985,0.00029879,2]
[331691685,1720648240628,-155.82468104,0.00029879,2]
[331691686,1720648240637,-202.13946757,0.00029879,2]
[331691687,1720648240647,-151.0,0.00029903,7]
[331691688,1720648240656,-151.0,0.00029903,7]
[331691689,1720648240665,-151.0,0.00029903,7]
[331691690,1720648240674,-759.868347,0.00029903,7]
[331691691,1720648240683,-284.571136,0.00029903,7]
[331691692,1720648240692,-759.868347,0.00029903,7]
[331691693,1720648240701,-151.0,0.00029903,2]
[331691694,1720648240710,-284.571136,0.00029903,7]
[331691695,1720648240719,-1490.60581636,0.00029904,2]
[331691696,1720648240728,-151.0,0.00029979,7]
[331691697,1720648240738,-151.0,0.00029979,7]
[331691698,1720648240747,-151.0,0.00029979,7]
[331691699,1720648240756,-151.0,0.00029979,7]
[331691701,1720648240765,-778.68918365,0.00029979,2]
[331691703,1720648240774,-170.94135721,0.00029999,2]
[331691705,1720648240783,-643.66349447,0.0003,4]
[331691706,1720648240792,-471.68236775,0.0003,4]
[331691707,1720648240801,-499.97460298,0.0003,4]
[331691708,1720648240810,-11239.65358693,0.0003,4]
[331691709,1720648240819,-232.67902139,0.0003,4]
[331691710,1720648240828,-154.68290005,0.00030341,2]
[331691711,1720648240838,-2844.91870824,0.00030341,4]
[331691712,1720648240850,-620.00005806,0.00030446,2]
[331691713,1720648240860,-1221.40764134,0.00031251,4]
[331691714,1720648240870,-151.0,0.00031487,4]
[331691715,1720648240881,-151.0,0.00031956,4]
[331691716,1720648240892,-620.0000029,0.00031969,2]
[331691717,1720648240902,-2882.0,0.00031975,2]
[331691718,1720648240915,-1003.81465651,0.00032,120]
[331691719,1720648240925,-157.66523315,0.00032229,4]
[331691720,1720648240934,-153.0,0.0003241,2]
[331691721,1720648240943,-151.0,0.00032425,4]
[331691722,1720648240952,-366.6405652,0.00032647,2]
[331691723,1720648240961,-503.64031218,0.00032712,2]
[331691724,1720648240971,-5292.88975486,0.00032776,2]
[331691725,1720648240980,-150.0,0.000328,13]
[331691726,1720648240990,-151.0,0.00032865,7]
[331691727,1720648240999,-151.0,0.00032865,7]
[331691728,1720648241009,-300.0,0.00032868,2]
[331691729,1720648241019,-150.0,0.00032876,2]
[331691730,1720648241029,-284.6000077,0.00032876,3]
[331691731,1720648241039,-5611.49557264,0.00032876,4]
[331691732,1720648241049,-500.0,0.00032876,7]
[331691733,1720648241059,-509.82568594,0.00032876,7]
[331691734,1720648241068,-516.65663321,0.00032876,7]
[331691735,1720648241077,-523.03987634,0.00032876,7]
[331691736,1720648241087,-500.0,0.00032876,7]
[331691737,1720648241096,-551.50224524,0.00032876,7]
[331691738,1720648241105,-535.39194579,0.00032876,7]
[331691739,1720648241114,-500.0,0.00032876,7]
[331691740,1720648241123,-500.0,0.00032876,7]
[331691741,1720648241132,-433.37075547,0.00032876,7]
[331691742,1720648241141,-500.0,0.00032876,7]
[331691743,1720648241151,-500.0,0.00032876,7]
[331691744,1720648241160,-349.1670993,0.00032876,7]
[331691745,1720648241169,-592.02,0.00032876,7]
[331691746,1720648241179,-507.81925589,0.00032876,7]
[331691747,1720648241188,-511.58747215,0.00032876,7]
[331691748,1720648241197,-312.15335566,0.00032876,4]
[331691749,1720648241206,-500.0,0.00032876,7]
[331691750,1720648241216,-500.0,0.00032876,7]
[331691751,1720648241225,-500.0,0.00032876,7]
[331691752,1720648241234,-151.0,0.00032876,7]
[331691753,1720648241243,-500.0,0.00032876,7]
[331691754,1720648241252,-500.0,0.00032876,7]
[331691755,1720648241262,-500.0,0.00032876,7]
[331691756,1720648241271,-500.0,0.00032876,7]
[331691757,1720648241281,-500.0,0.00032876,7]
[331691758,1720648241290,-500.0,0.00032876,7]
[331691759,1720648241300,-500.0,0.00032876,7]
[331691760,1720648241310,-500.0,0.00032876,7]
[331691761,1720648241320,-512.89456019,0.00032876,7]
[331691762,1720648241329,-567.85658483,0.00032876,7]
[331691763,1720648241338,-545.2236247,0.00032876,7]
[331691764,1720648241348,-500.82595431,0.00032876,3]
[331691765,1720648241358,-169.95444653,0.00032876,7]
[331691766,1720648241367,-500.0,0.00032876,7]
[331691767,1720648241377,-500.0,0.00032876,7]
[331691768,1720648241386,-500.0,0.00032876,7]
[331691769,1720648241395,-500.0,0.00032876,2]
[331691770,1720648241404,-510.71627223,0.00032876,7]
[331691771,1720648241413,-500.0,0.00032876,7]
[331691772,1720648241422,-1722.91,0.00032876,4]
[331691773,1720648241431,-196.34720841,0.00032876,7]
[331691774,1720648241440,-645.67381914,0.00032876,7]
[331691775,1720648241449,-525.0,0.00032876,7]
[331691776,1720648241459,-516.38473904,0.00032876,7]
[331691777,1720648241468,-564.74916678,0.00032876,7]
[331691778,1720648241477,-500.0,0.00032876,7]
[331691779,1720648241486,-500.0,0.00032876,7]
[331691780,1720648241496,-500.0,0.00032876,7]
[331691781,1720648241506,-500.0,0.00032876,7]
[331691782,1720648241515,-504.49720481,0.00032876,7]
[331691783,1720648241525,-436.0976372,0.00032876,7]
[331691784,1720648241535,-500.0,0.00032876,7]
[331691785,1720648241544,-500.0,0.00032876,7]
[331691786,1720648241554,-500.0,0.00032876,7]
[331691787,1720648241563,-500.0,0.00032876,7]
[331691788,1720648241573,-510.76347615,0.00032876,7]
[331691789,1720648241582,-562.68953031,0.00032876,7]
[331691790,1720648241591,-500.0,0.00032876,7]
[331691791,1720648241601,-446.45355739,0.00032876,7]
[331691792,1720648241698,-500.0,0.00032876,7]
[331691793,1720648241708,-500.0,0.00032876,7]
[331691794,1720648241717,-500.0,0.00032876,7]
[331691795,1720648241729,-500.0,0.00032876,7]
[331691796,1720648241739,-500.0,0.00032876,7]
[331691797,1720648241748,-373.74386389,0.00032876,7]
[331691798,1720648241758,-500.0,0.00032876,7]
[331691799,1720648241767,-500.0,0.00032876,7]
[331691800,1720648241776,-500.0,0.00032876,7]
[331691801,1720648241786,-500.0,0.00032876,7]
[331691802,1720648241796,-251.40571538,0.00032876,7]
[331691803,1720648241805,-504.61120666,0.00032876,7]
[331691804,1720648241814,-189.70760529,0.00032876,7]
[331691805,1720648241825,-523.87512682,0.00032876,7]
[331691806,1720648241835,-507.91304751,0.00032876,7]
[331691807,1720648241846,-508.03266137,0.00032876,7]
[331691808,1720648241856,-1191.01,0.00032876,7]
[331691809,1720648241865,-504.59237661,0.00032876,7]
[331691810,1720648241875,-500.0,0.00032876,7]
[331691811,1720648241884,-2116.23,0.00032876,7]
[331691812,1720648241895,-500.0,0.00032876,7]
[331691813,1720648241905,-500.0,0.00032876,7]
[331691814,1720648241915,-525.6161976,0.00032876,7]
[331691815,1720648241924,-500.0,0.00032876,7]
[331691816,1720648241934,-500.0,0.00032876,7]
[331691817,1720648241946,-512.70080887,0.00032876,7]
[331691818,1720648241955,-500.0,0.00032876,7]
[331691819,1720648241964,-511.40716072,0.00032876,7]
[331691820,1720648241973,-508.15813503,0.00032876,7]
[331691821,1720648241982,-473.38967444,0.00032876,7]
[331691822,1720648241992,-500.0,0.00032876,7]
[331691823,1720648242002,-500.0,0.00032876,7]
[331691824,1720648242011,-500.0,0.00032876,7]
[331691825,1720648242022,-500.0,0.00032876,7]
[331691826,1720648242031,-586.51,0.00032876,7]
[331691827,1720648242040,-500.0,0.00032876,7]
[331691828,1720648242050,-503.56758103,0.00032876,7]
[331691829,1720648242061,-500.0,0.00032876,7]
[331691830,1720648242071,-500.0,0.00032876,7]
[331691831,1720648242080,-503.76980122,0.00032876,7]
[331691832,1720648242090,-424.77615626,0.00032876,7]
[331691833,1720648242200,-197.26562919,0.00025869,2]
[331691834,1720648242209,-154.59033561,0.00027194,2]
[331691835,1720648242219,-532.42648906,0.00029904,2]
[331691836,1720648242228,-5182.6212183,0.00032862,2]
[331691837,1720648242237,-75.22384374,0.00032876,7]
[331691838,1720648242246,-500.0,0.00032876,7]
[331691839,1720648242255,-509.66054696,0.00032876,7]
[331691840,1720648242264,-584.45,0.00032876,7]
[331691841,1720648242273,-500.0,0.00032876,7]
[331691842,1720648242283,-5269.98,0.00032876,7]
[331691843,1720648242292,-151.0,0.00032876,7]
[331691844,1720648242301,-151.0,0.00032876,7]
[331691845,1720648242310,-505.26173045,0.00032876,7]
[331691846,1720648242319,-500.0,0.00032876,7]
[331691847,1720648242329,-500.0,0.00032876,7]
[331691848,1720648242338,-500.0,0.00032876,7]
[331691849,1720648242347,-500.0,0.00032876,7]
[331691850,1720648242357,-276.3927466,0.00032876,7]
[331691851,1720648242366,-151.0,0.00032876,7]
[331691852,1720648242375,-151.0,0.00032876,7]
[331691853,1720648242384,-97.13883887,0.00032876,2]
[331691862,1720648243704,-554.35445652,0.00027187,2]